[Event "2nd Cambridge Open 2024"]
[Site "Cambridge"]
[Date "2024.02.23"]
[Round "7.33"]
[White "Kovalskyi, Roman"]
[Black "Gardiner, Eric D"]
[Result "1-0"]
[ECO "B13"]
[WhiteElo "2009"]
[BlackElo "1837"]
[Annotator "RC"]
[PlyCount "73"]
[EventDate "2024.02.18"]
[EventType "swiss"]
[EventCountry "ENG"]
[SourceTitle "playchess.com"]
[Source "ChessBase"]
[SourceQuality "1"]
[TimeControl "5400+30"]

1. e4 {[%emt 0:06:37]} c6 {[%emt 0:00:10]} 2. d4 {[%emt 0:00:04]} d5 {[%emt 0:00:11]} 3. exd5 {[%emt 0:00:04]} cxd5 {[%emt 0:00:05]} 4. Bd3 {[%emt 0:00:02]} Nc6 {[%emt 0:00:33]} 5. c3 {[%emt 0:00:05]} Nf6 {[%emt 0:00:17]} 6. h3 {[%emt 0:00:05]} e5 {[%emt 0:00:17]} 7. dxe5 {[%emt 0:00:04]} Nxe5 {[%emt 0:00:09]} 8. Nf3 {[%emt 0:00:03]} Nxd3+ {[%emt 0:00:32]} 9. Qxd3 {[%emt 0:00:10]} Bd6 {[%emt 0:00:23]} 10. O-O {[%emt 0:00:06]} O-O {[%emt 0:00:12]} 11. Be3 {[%emt 0:00:03]} Re8 {[%emt 0:00:59]} 12. Nbd2 {[%emt 0:00:25]} h6 {[%emt 0:00:54]} 13. Rfe1 {[%emt 0:01:08]} Ne4 {[%emt 0:07:04]} 14. Rad1 {[%emt 0:03:56]} Bf5 {[%emt 0:17:08]} 15. Nf1 {[%emt 0:03:06]} Qf6 {[%emt 0:03:17]} 16. Bd4 {[%emt 0:09:59]} Qd8 {[%emt 0:10:24]} 17. Ne3 {[%emt 0:02:30]} Bg6 {[%emt 0:05:34]} 18. Qb5 {[%emt 0:18:12]} Ng5 {[%emt 0:01:49]} 19. Nxg5 {[%emt 0:04:23]} Qxg5 {[%emt 0:04:40]} 20. Qxd5 {[%emt 0:00:26]} Qe7 {[%emt 0:03:05]} 21. Bf6 {[%emt 0:08:09]} Qxf6 {[%emt 0:01:25]} 22. Qxd6 {[%emt 0:00:07]} Re6 {[%emt 0:01:53]} 23. Qd4 {[%emt 0:05:41]} Qe7 {[%emt 0:08:30]} 24. Qd7 {[%emt 0:03:27]} Re8 {[%emt 0:00:55]} 25. Qxe7 {[%emt 0:00:40]} R8xe7 {[%emt 0:00:19]} 26. Rd8+ {[%emt 0:01:19]} Kh7 {[%emt 0:00:07]} 27. Red1 {[%emt 0:00:04]} Be4 {[%emt 0:03:26]} 28. R1d7 {[%emt 0:07:10]} Bc6 {[%emt 0:01:12]} 29. Rxe7 {[%emt 0:00:07]} Rxe7 {[%emt 0:00:05]} 30. Kf1 {[%emt 0:00:13]} Kg6 {[%emt 0:04:08]} 31. g3 {[%emt 0:00:10]} Bf3 {[%emt 0:03:27]} 32. Ke1 {[%emt 0:00:50]} f5 {[%emt 0:05:49]} 33. Kd2 {[%emt 0:08:18]} Kf7 {[%emt 0:03:23]} 34. c4 {[%emt 0:04:14]} Ke6 {[%emt 0:02:18]} 35. Nxf5 {[%emt 0:03:37]} Kxf5 {[%emt 0:01:34]} 36. Rf8+ {[%emt 0:00:05]} Ke5 {[%emt 0:01:28]} 37. Rxf3 {[%emt 0:01:23]} 1-0

[Event "2nd Cambridge Open 2024"]
[Site "Cambridge"]
[Date "2024.02.23"]
[Round "7.34"]
[White "Cole, James"]
[Black "Hebden, Mark L"]
[Result "1/2-1/2"]
[ECO "C86"]
[WhiteElo "1940"]
[BlackElo "2416"]
[Annotator "RC"]
[PlyCount "90"]
[EventDate "2024.02.18"]
[EventType "swiss"]
[EventCountry "ENG"]
[SourceTitle "playchess.com"]
[Source "ChessBase"]
[SourceQuality "1"]
[TimeControl "5400+30"]

1. e4 {[%emt 0:00:02]} e5 {[%emt 0:00:07]} 2. Nf3 {[%emt 0:00:03]} Nc6 {[%emt 0:00:06]} 3. Bb5 {[%emt 0:00:04]} a6 {[%emt 0:00:06]} 4. Ba4 {[%emt 0:00:02]} Nf6 {[%emt 0:00:07]} 5. Qe2 {[%emt 0:00:03]} b5 {[%emt 0:00:55]} 6. Bb3 {[%emt 0:00:04]} Be7 {[%emt 0:00:06]} 7. O-O {[%emt 0:00:05]} O-O {[%emt 0:00:21]} 8. c3 {[%emt 0:00:03]} d5 {[%emt 0:00:15]} 9. d3 {[%emt 0:00:04]} Re8 {[%emt 0:00:25]} 10. Re1 {[%emt 0:00:27]} Bb7 {[%emt 0:01:35]} 11. Nbd2 {[%emt 0:00:14]} Bf8 {[%emt 0:00:20]} 12. a3 {[%emt 0:00:14]} Qd7 {[%emt 0:06:37]} 13. exd5 {[%emt 0:00:37]} Na5 {[%emt 0:04:57]} 14. Ba2 {[%emt 0:05:20]} Bxd5 {[%emt 0:00:31]} 15. Bxd5 {[%emt 0:26:16]} Qxd5 {[%emt 0:06:21]} 16. b4 {[%emt 0:07:13]} Nb7 {[%emt 0:02:14]} 17. c4 {[%emt 0:03:00]} Qd8 {[%emt 0:06:06]} 18. Bb2 {[%emt 0:01:39]} c5 {[%emt 0:00:18]} 19. cxb5 {[%emt 0:08:02]} axb5 {[%emt 0:00:33]} 20. Nxe5 {[%emt 0:05:32]} cxb4 {[%emt 0:00:44]} 21. axb4 {[%emt 0:00:09]} Bxb4 {[%emt 0:01:42]} 22. Rxa8 {[%emt 0:02:12]} Qxa8 {[%emt 0:00:16]} 23. Ra1 {[%emt 0:01:25]} Qd8 {[%emt 0:06:03]} 24. Ne4 {[%emt 0:03:54]} Na5 {[%emt 0:08:18]} 25. Qf3 {[%emt 0:08:43]} h5 {[%emt 0:10:56]} 26. Rd1 {[%emt 0:06:09]} Be7 {[%emt 0:02:32]} 27. h3 {[%emt 0:04:40]} b4 {[%emt 0:02:35]} 28. d4 {[%emt 0:01:23]} Rf8 {[%emt 0:02:03]} 29. d5 {[%emt 0:02:54]} Nxe4 {[%emt 0:00:27]} 30. Qxe4 {[%emt 0:00:05]} Qd6 {[%emt 0:00:24]} 31. Rd3 {[%emt 0:02:24]} Bf6 {[%emt 0:02:43]} 32. Nc4 {[%emt 0:04:17]} Nxc4 {[%emt 0:00:31]} 33. Bxf6 {[%emt 0:00:27]} Qxf6 {[%emt 0:05:45]} 34. Qxc4 {[%emt 0:00:09]} Ra8 {[%emt 0:03:54]} 35. Rd1 {[%emt 0:01:41]} Ra1 {[%emt 0:04:27]} 36. Qc8+ {[%emt 0:00:04]} Kh7 {[%emt 0:00:09]} 37. Qc2+ {[%emt 0:00:04]} g6 {[%emt 0:00:16]} 38. d6 {[%emt 0:00:16]} Qc3 {[%emt 0:01:28]} 39. Qe2 {[%emt 0:00:41]} Qd4 {[%emt 0:01:18]} 40. Rxa1 {[%emt 0:00:04]} Qxa1+ {[%emt 0:00:05]} 41. Kh2 {[%emt 0:00:13]} Qd4 {[%emt 0:00:06]} 42. Qe7 {[%emt 0:01:42]} Qf4+ {[%emt 0:02:45]} 43. Kg1 {[%emt 0:00:06]} b3 {[%emt 0:00:35]} 44. Qb7 {[%emt 0:00:56]} Qc1+ {[%emt 0:07:19]} 45. Kh2 {[%emt 0:00:08]} Qf4+ {[%emt 0:01:05]} 1/2-1/2

[Event "2nd Cambridge Open 2024"]
[Site "Cambridge"]
[Date "2024.02.23"]
[Round "7.35"]
[White "Bradbury, Neil H"]
[Black "Wheatley, Wilfred"]
[Result "1/2-1/2"]
[ECO "D74"]
[WhiteElo "2217"]
[BlackElo "1864"]
[Annotator "RC"]
[PlyCount "126"]
[EventDate "2024.02.18"]
[EventType "swiss"]
[EventCountry "ENG"]
[SourceTitle "playchess.com"]
[Source "ChessBase"]
[SourceQuality "1"]
[TimeControl "5400+30"]

1. d4 {[%emt 0:03:07]} Nf6 {[%emt 0:00:04]} 2. c4 {[%emt 0:00:42]} g6 {[%emt 0:00:08]} 3. Nf3 {[%emt 0:00:15]} Bg7 {[%emt 0:00:45]} 4. g3 {[%emt 0:00:15]} O-O {[%emt 0:01:09]} 5. Bg2 {[%emt 0:00:03]} d5 {[%emt 0:00:13]} 6. cxd5 {[%emt 0:00:11]} Nxd5 {[%emt 0:00:10]} 7. O-O {[%emt 0:00:12]} Nc6 {[%emt 0:01:18]} 8. e4 {[%emt 0:11:08]} Nb6 {[%emt 0:00:19]} 9. d5 {[%emt 0:08:31]} Na5 {[%emt 0:02:09]} 10. Qe1 {[%emt 0:06:43]} Nac4 {[%emt 0:06:37]} 11. Nc3 {[%emt 0:02:06]} c6 {[%emt 0:04:45]} 12. b3 {[%emt 0:04:34]} Ne5 {[%emt 0:05:16]} 13. Nxe5 {[%emt 0:03:53]} Bxe5 {[%emt 0:03:16]} 14. Bh6 {[%emt 0:00:08]} Bg7 {[%emt 0:05:15]} 15. Bxg7 {[%emt 0:00:14]} Kxg7 {[%emt 0:00:04]} 16. dxc6 {[%emt 0:00:33]} bxc6 {[%emt 0:00:06]} 17. Qe3 {[%emt 0:00:06]} e5 {[%emt 0:06:24]} 18. Rfd1 {[%emt 0:04:22]} Qe7 {[%emt 0:02:55]} 19. Rd2 {[%emt 0:13:23]} Be6 {[%emt 0:02:26]} 20. Rad1 {[%emt 0:00:09]} Rfd8 {[%emt 0:03:51]} 21. h3 {[%emt 0:01:18]} Rxd2 {[%emt 0:05:59]} 22. Qxd2 {[%emt 0:00:13]} Rc8 {[%emt 0:03:53]} 23. Ne2 {[%emt 0:04:45]} c5 {[%emt 0:02:52]} 24. Qb2 {[%emt 0:00:51]} f6 {[%emt 0:01:19]} 25. Qa3 {[%emt 0:06:18]} Kf8 {[%emt 0:09:58]} 26. Nc3 {[%emt 0:01:07]} Rc7 {[%emt 0:08:08]} 27. Qa5 {[%emt 0:06:44]} c4 {[%emt 0:06:57]} 28. b4 {[%emt 0:03:36]} Rd7 {[%emt 0:01:52]} 29. Rc1 {[%emt 0:01:20]} Rd2 {[%emt 0:01:34]} 30. Nb5 {[%emt 0:03:58]} Nc8 {[%emt 0:02:38]} 31. Nc7 {[%emt 0:01:45]} Qd6 {[%emt 0:10:16]} 32. Bf1 {[%emt 0:01:37]} Bf7 {[%emt 0:00:41]} 33. Nb5 {[%emt 0:03:32]} Qb6 {[%emt 0:01:09]} 34. Qxb6 {[%emt 0:01:22]} Nxb6 {[%emt 0:00:19]} 35. a4 {[%emt 0:01:06]} Rb2 {[%emt 0:00:39]} 36. a5 {[%emt 0:03:13]} Rxb4 {[%emt 0:00:36]} 37. Nd6 {[%emt 0:00:12]} Nd7 {[%emt 0:00:52]} 38. Nxf7 {[%emt 0:00:37]} Kxf7 {[%emt 0:00:03]} 39. Bxc4+ {[%emt 0:00:04]} Ke7 {[%emt 0:00:41]} 40. Bg8 {[%emt 0:04:01]} Ra4 {[%emt 0:01:36]} 41. Bxh7 {[%emt 0:00:21]} Rxa5 {[%emt 0:00:20]} 42. Bxg6 {[%emt 0:00:09]} Rc5 {[%emt 0:00:20]} 43. Ra1 {[%emt 0:00:31]} a5 {[%emt 0:00:09]} 44. h4 {[%emt 0:00:08]} Nf8 {[%emt 0:00:47]} 45. Bf5 {[%emt 0:00:34]} Ne6 {[%emt 0:00:18]} 46. h5 {[%emt 0:01:34]} Nd4 {[%emt 0:00:16]} 47. Kg2 {[%emt 0:00:52]} Kf8 {[%emt 0:00:42]} 48. h6 {[%emt 0:00:31]} Nxf5 {[%emt 0:00:55]} 49. exf5 {[%emt 0:00:01]} Kg8 {[%emt 0:00:05]} 50. Rb1 {[%emt 0:01:07]} a4 {[%emt 0:01:29]} 51. Rb8+ {[%emt 0:00:55]} Kh7 {[%emt 0:00:07]} 52. Ra8 {[%emt 0:00:01]} Kxh6 {[%emt 0:00:14]} 53. Rxa4 {[%emt 0:00:02]} Kg5 {[%emt 0:00:08]} 54. g4 {[%emt 0:00:59]} Rc3 {[%emt 0:00:31]} 55. Re4 {[%emt 0:00:44]} Rd3 {[%emt 0:00:22]} 56. f3 {[%emt 0:00:29]} Kh4 {[%emt 0:00:36]} 57. Re2 {[%emt 0:00:23]} Ra3 {[%emt 0:00:10]} 58. Kf2 {[%emt 0:00:12]} Rb3 {[%emt 0:00:10]} 59. Ra2 {[%emt 0:00:15]} e4 {[%emt 0:00:40]} 60. fxe4 {[%emt 0:00:47]} Kxg4 {[%emt 0:00:12]} 61. Re2 {[%emt 0:01:15]} Ra3 {[%emt 0:00:21]} 62. Re3 {[%emt 0:00:50]} Ra2+ {[%emt 0:00:05]} 63. Re2 {[%emt 0:00:02]} Ra3 {[%emt 0:00:07]} 1/2-1/2

[Event "2nd Cambridge Open 2024"]
[Site "Cambridge"]
[Date "2024.02.23"]
[Round "7.37"]
[White "Mihalik, Agoston"]
[Black "Lazarus, Simon E"]
[Result "1/2-1/2"]
[ECO "B31"]
[WhiteElo "2146"]
[BlackElo "1845"]
[Annotator "NA"]
[PlyCount "240"]
[EventDate "2024.02.18"]
[EventType "swiss"]
[EventCountry "ENG"]
[SourceTitle "playchess.com"]
[Source "ChessBase"]
[SourceQuality "1"]
[TimeControl "5400+30"]

1. e4 {[%emt 0:00:07]} c5 {[%emt 0:01:12]} 2. Nf3 {[%emt 0:01:02]} Nc6 {[%emt 0:00:53]} 3. Bb5 {[%emt 0:00:10]} g6 {[%emt 0:00:30]} 4. O-O {[%emt 0:00:11]} Bg7 {[%emt 0:00:59]} 5. c3 {[%emt 0:00:08]} Nf6 {[%emt 0:02:05]} 6. Re1 {[%emt 0:02:43]} O-O {[%emt 0:01:23]} 7. d4 {[%emt 0:00:29]} d5 {[%emt 0:02:15]} 8. e5 {[%emt 0:00:26]} Ne4 {[%emt 0:00:26]} 9. Bxc6 {[%emt 0:00:39]} bxc6 {[%emt 0:00:25]} 10. Be3 {[%emt 0:00:13] B31: Sicilian: 2...Nc6 3 Bb5 g6.} cxd4 {[%emt 0:09:44]} 11. cxd4 {[%emt 0:00:14]} Qb6 {[%emt 0:03:42]} 12. Qc1 {[%emt 0:03:32]} Rb8 {[%emt 0:10:09]} 13. b3 {[%emt 0:01:20]} f6 {[%emt 0:06:09]} 14. Nc3 {[%emt 0:07:47]} Nxc3 {[%emt 0:03:13]} 15. Qxc3 {[%emt 0:00:22]} Bg4 {[%emt 0:02:37]} 16. exf6 {[%emt 0:04:45]} exf6 {[%emt 0:01:16]} 17. Bf4 {[%emt 0:00:16]} Rbc8 {[%emt 0:05:48]} 18. Bd6 {[%emt 0:09:04]} Rfe8 {[%emt 0:00:53]} 19. Rac1 {[%emt 0:30:36]} Bxf3 {[%emt 0:05:46]} 20. gxf3 {[%emt 0:00:25]} f5 {[%emt 0:07:57]} 21. Rxe8+ {[%emt 0:07:29]} Rxe8 {[%emt 0:01:14]} 22. Be5 {[%emt 0:00:52]} Re6 {[%emt 0:04:40]} 23. f4 {[%emt 0:00:37]} Bf8 {[%emt 0:02:39]} 24. Rc2 {[%emt 0:00:47]} a5 {[%emt 0:02:52]} 25. Re2 {[%emt 0:02:32]} Qb4 {[%emt 0:02:41]} 26. Qc2 {[%emt 0:00:25]} Qb5 {[%emt 0:01:38]} 27. Re3 {[%emt 0:00:30]} Kf7 {[%emt 0:02:47]} 28. Kg2 {[%emt 0:02:47]} Bb4 {[%emt 0:03:04]} 29. Rh3 {[%emt 0:00:38]} Kg8 {[%emt 0:01:40]} 30. Rg3 {[%emt 0:00:42]} Kf7 {[%emt 0:01:36]} 31. Qd1 {[%emt 0:00:11]} Be7 {[%emt 0:01:56]} 32. Rh3 {[%emt 0:01:22]} h5 {[%emt 0:01:13]} 33. Rg3 {[%emt 0:00:27]} Bh4 {[%emt 0:02:44]} 34. Re3 {[%emt 0:00:17]} Be7 {[%emt 0:00:24]} 35. Kf3 {[%emt 0:03:09]} Bb4 {[%emt 0:01:25]} 36. Qc1 {[%emt 0:02:31]} Qb7 {[%emt 0:01:19]} 37. Kg3 {[%emt 0:02:50]} Qe7 {[%emt 0:00:36]} 38. Qd1 {[%emt 0:00:53]} Qb7 {[%emt 0:01:06]} 39. Kg2 {[%emt 0:02:11]} Qd7 {[%emt 0:01:31]} 40. Rg3 {[%emt 0:00:56]} Be7 {[%emt 0:00:54]} 41. Qe2 {[%emt 0:00:53]} Qb7 {[%emt 0:00:15]} 42. Re3 {[%emt 0:00:23]} Bb4 {[%emt 0:00:57]} 43. Qc2 {[%emt 0:04:55]} Bf8 {[%emt 0:01:24]} 44. Rg3 {[%emt 0:02:37]} Qb5 {[%emt 0:01:52]} 45. Re3 {[%emt 0:00:47]} Bb4 {[%emt 0:00:39]} 46. Qc1 {[%emt 0:00:11]} Bf8 {[%emt 0:00:33]} 47. a3 {[%emt 0:00:16]} Be7 {[%emt 0:00:29]} 48. Kf3 {[%emt 0:01:12]} Bf8 {[%emt 0:00:06]} 49. Rc3 {[%emt 0:01:50]} Be7 {[%emt 0:00:17]} 50. Ke3 {[%emt 0:03:38]} Bf8 {[%emt 0:00:19]} 51. a4 {[%emt 0:01:30]} Qb7 {[%emt 0:00:25]} 52. Rd3 {[%emt 0:00:54]} Bb4 {[%emt 0:00:57]} 53. Kf3 {[%emt 0:00:17]} Qd7 {[%emt 0:00:47]} 54. Kg2 {[%emt 0:00:12]} Re8 {[%emt 0:00:51]} 55. Re3 {[%emt 0:00:26]} Re6 {[%emt 0:00:15]} 56. Qd1 {[%emt 0:00:07]} Bf8 {[%emt 0:01:07]} 57. Rg3 {[%emt 0:00:12]} Qb7 {[%emt 0:01:09]} 58. Qe2 {[%emt 0:00:19]} Be7 {[%emt 0:00:25]} 59. Re3 {[%emt 0:00:05]} Bb4 {[%emt 0:00:15]} 60. Kg3 {[%emt 0:01:00]} Bf8 {[%emt 0:00:26]} 61. Kh3 {[%emt 0:00:58]} Bb4 {[%emt 0:00:25]} 62. Kg2 {[%emt 0:00:04]} Bf8 {[%emt 0:00:10]} 63. Bh8 {[%emt 0:00:41]} Rxe3 {[%emt 0:00:47]} 64. Qxe3 {[%emt 0:00:04]} Qe7 {[%emt 0:00:46]} 65. Be5 {[%emt 0:00:23]} Qb7 {[%emt 0:00:17]} 66. Qc3 {[%emt 0:00:16]} Bb4 {[%emt 0:00:15]} 67. Qd3 {[%emt 0:00:02]} Bf8 {[%emt 0:00:50]} 68. Qe3 {[%emt 0:00:16]} Bb4 {[%emt 0:00:19]} 69. Qg3 {[%emt 0:00:27]} Be7 {[%emt 0:00:10]} 70. Qd3 {[%emt 0:00:33]} Bb4 {[%emt 0:00:11]} 71. Bh8 {[%emt 0:00:33]} Qe7 {[%emt 0:00:33]} 72. Be5 {[%emt 0:00:05]} Qb7 {[%emt 0:00:05]} 73. Qe3 {[%emt 0:00:09]} Qc8 {[%emt 0:01:32]} 74. Kg3 {[%emt 0:00:33]} Be7 {[%emt 0:00:38]} 75. Kf3 {[%emt 0:01:43]} Bb4 {[%emt 0:00:23]} 76. Ke2 {[%emt 0:00:09]} Be7 {[%emt 0:00:26]} 77. Kd2 {[%emt 0:00:14]} Bb4+ {[%emt 0:00:20]} 78. Kc2 {[%emt 0:00:06]} Be7 {[%emt 0:00:15]} 79. Bg7 {[%emt 0:02:51]} Qe6 {[%emt 0:01:11]} (79... Qa6 $5) 80. Be5 {[%emt 0:01:26]} Qc8 {[%emt 0:00:08]} 81. Qd3 {[%emt 0:00:24]} Bb4 {[%emt 0:00:26]} 82. Kd1 {[%emt 0:00:11]} Bf8 {[%emt 0:00:20]} 83. Qe3 {[%emt 0:00:15]} Bb4 {[%emt 0:00:34]} 84. Ke2 {[%emt 0:00:05]} Qe6 {[%emt 0:00:52]} 85. Bc7 $11 {[%emt 0:01:04]} Qe4 {[%emt 0:01:05]} 86. Bb6 {[%emt 0:00:28]} Qc2+ {[%emt 0:00:17]} 87. Kf3 {[%emt 0:00:16]} Qd1+ {[%emt 0:00:33]} 88. Kg2 {[%emt 0:00:10]} Qg4+ {[%emt 0:00:14]} 89. Qg3 {[%emt 0:00:01]} Qxg3+ {[%emt 0:01:12]} 90. fxg3 {[%emt 0:00:29]} Ke6 {[%emt 0:00:34]} 91. Kf3 {[%emt 0:00:07]} Kf7 {[%emt 0:00:17]} 92. Ke3 {[%emt 0:00:49]} Ke6 {[%emt 0:00:12]} 93. Kd3 {[%emt 0:01:35]} Kd6 {[%emt 0:00:37]} 94. Bd8 {[%emt 0:01:44]} Kd7 {[%emt 0:00:20]} 95. Bb6 {[%emt 0:00:00]} Kd6 {[%emt 0:00:07]} 96. Ke3 {[%emt 0:00:00]} Ke6 {[%emt 0:00:27]} 97. h3 {[%emt 0:00:22]} Kd6 {[%emt 0:01:13]} 98. Bd8 {[%emt 0:00:58]} Ke6 {[%emt 0:00:17]} 99. Kf3 {[%emt 0:00:25]} Bc3 {[%emt 0:00:48]} 100. Bb6 {[%emt 0:00:08]} Bb4 {[%emt 0:00:11]} 101. g4 {[%emt 0:00:10]} hxg4+ {[%emt 0:00:22]} 102. hxg4 {[%emt 0:00:03]} Bd2 {[%emt 0:00:39]} 103. Bc5 {[%emt 0:00:17]} fxg4+ {[%emt 0:00:47]} 104. Kxg4 {[%emt 0:00:06]} Bc3 {[%emt 0:00:15]} 105. Kg5 {[%emt 0:01:02]} Kf7 {[%emt 0:00:39]} 106. Bb6 {[%emt 0:01:54]} Bd2 {[%emt 0:00:28]} 107. Bc7 {[%emt 0:00:10]} Bc3 {[%emt 0:00:52]} 108. Be5 {[%emt 0:00:10]} Bd2 {[%emt 0:00:15]} 109. Bc7 {[%emt 0:00:33]} Bc3 {[%emt 0:00:11]} 110. f5 {[%emt 0:00:22]} gxf5 {[%emt 0:00:49]} 111. Kxf5 {[%emt 0:00:06]} Bxd4 {[%emt 0:00:20]} 112. Bxa5 {[%emt 0:00:02]} Ke7 {[%emt 0:00:14]} 113. Bd2 {[%emt 0:01:04]} Kd7 {[%emt 0:00:51]} 114. b4 {[%emt 0:00:09]} Bf2 {[%emt 0:00:13]} 115. Bc3 {[%emt 0:01:00]} Bh4 {[%emt 0:00:16]} 116. Bd2 {[%emt 0:00:26]} Be7 {[%emt 0:00:18]} 117. b5 {[%emt 0:00:28]} cxb5 {[%emt 0:00:10]} 118. axb5 {[%emt 0:00:02]} d4 {[%emt 0:01:15]} 119. Ke5 {[%emt 0:00:12]} Bc5 {[%emt 0:00:47]} 120. Kd5 {[%emt 0:00:03]} Bb6 {[%emt 0:00:21]} 1/2-1/2

[Event "2nd Cambridge Open 2024"]
[Site "Cambridge"]
[Date "2024.02.23"]
[Round "7.38"]
[White "Gooding, Ian"]
[Black "Banerjee, Supratit"]
[Result "0-1"]
[ECO "C10"]
[WhiteElo "1923"]
[BlackElo "1984"]
[Annotator "NA RC"]
[PlyCount "90"]
[EventDate "2024.02.18"]
[EventType "swiss"]
[EventCountry "ENG"]
[SourceTitle "playchess.com"]
[Source "ChessBase"]
[SourceQuality "1"]
[TimeControl "5400+30"]

1. e4 {[%emt 0:00:02]} e6 {[%emt 0:00:12]} 2. d4 {[%emt 0:00:07]} d5 {[%emt 0:00:26]} 3. Nc3 {[%emt 0:00:13]} dxe4 {[%emt 0:00:36]} 4. Nxe4 {[%emt 0:00:07]} Nd7 {[%emt 0:00:14]} 5. Nf3 {[%emt 0:05:06]} Ngf6 {[%emt 0:00:18]} 6. Nc3 {[%emt 0:09:19]} Bb4 {[%emt 0:03:05]} 7. a3 {[%emt 0:01:55]} Be7 {[%emt 0:03:02]} 8. Be3 {[%emt 0:03:40]} O-O {[%emt 0:00:39]} 9. Be2 {[%emt 0:09:31]} Nb6 {[%emt 0:03:26]} 10. O-O {[%emt 0:02:36]} Nbd5 {[%emt 0:02:14]} 11. Nxd5 {[%emt 0:03:05]} Nxd5 {[%emt 0:00:40]} 12. Bc1 {[%emt 0:08:55]} c5 {[%emt 0:03:37]} 13. c4 {[%emt 0:01:00]} Nf6 {[%emt 0:01:09]} 14. dxc5 {[%emt 0:00:11]} Bxc5 {[%emt 0:10:19]} 15. b4 {[%emt 0:00:54]} Be7 {[%emt 0:02:48]} 16. Bb2 {[%emt 0:02:07]} b6 {[%emt 0:01:47]} 17. Ne5 {[%emt 0:07:08]} Bb7 {[%emt 0:02:11]} 18. Bf3 {[%emt 0:02:21]} Qc7 {[%emt 0:01:14]} 19. Qe2 {[%emt 0:02:04]} Rad8 {[%emt 0:02:52]} 20. Rfd1 {[%emt 0:01:58]} Bd6 {[%emt 0:18:16]} 21. Bxb7 {[%emt 0:04:06]} Qxb7 {[%emt 0:02:14]} 22. Rac1 {[%emt 0:02:26]} a6 {[%emt 0:01:40]} 23. Ba1 {[%emt 0:06:26]} a5 {[%emt 0:03:54]} 24. c5 {[%emt 0:02:16]} bxc5 {[%emt 0:01:58]} 25. bxc5 {[%emt 0:00:03]} Bxe5 {[%emt 0:01:44]} 26. Bxe5 {[%emt 0:01:31]} Nd5 {[%emt 0:02:23]} 27. c6 {[%emt 0:04:04]} Qe7 {[%emt 0:00:28]} 28. a4 {[%emt 0:03:57]} Qg5 {[%emt 0:02:16]} 29. c7 {[%emt 0:02:54]} Rc8 {[%emt 0:03:31]} 30. Bd6 {[%emt 0:00:36]} Rfe8 {[%emt 0:06:41]} 31. Qb5 {[%emt 0:01:42]} h6 {[%emt 0:00:24]} 32. Qxa5 {[%emt 0:02:00]} f5 {[%emt 0:02:53]} 33. Qe1 {[%emt 0:02:20]} Qg6 {[%emt 0:01:42]} 34. f4 {[%emt 0:01:53]} Qf7 {[%emt 0:00:37]} 35. Qe5 {[%emt 0:00:59]} Qd7 {[%emt 0:00:14]} 36. a5 {[%emt 0:01:00]} Qb5 {[%emt 0:00:57]} 37. Rc5 {[%emt 0:02:30]} Qa6 {[%emt 0:00:19]} 38. Re1 {[%emt 0:02:33]} Nf6 {[%emt 0:01:57]} 39. Qe2 {[%emt 0:01:11]} Qxd6 {[%emt 0:00:08]} 40. Qc4 {[%emt 0:01:01]} Ne4 {[%emt 0:00:25]} 41. Rxf5 {[%emt 0:00:23]} Nd2 {[%emt 0:00:44]} 42. Qa2 {[%emt 0:00:01]} Qd4+ {[%emt 0:00:41]} 43. Kh1 {[%emt 0:00:28]} Ne4 {[%emt 0:00:25]} 44. h3 {[%emt 0:00:25]} Ng3+ {[%emt 0:00:03]} 45. Kh2 {[%emt 0:00:03]} Nxf5 {[%emt 0:00:03]} 0-1

[Event "2nd Cambridge Open 2024"]
[Site "Cambridge"]
[Date "2024.02.23"]
[Round "7.39"]
[White "Yu, Rock"]
[Black "Crocker, Philip J"]
[Result "1/2-1/2"]
[ECO "C44"]
[WhiteElo "1767"]
[BlackElo "2137"]
[Annotator "RC"]
[PlyCount "50"]
[EventDate "2024.02.18"]
[EventType "swiss"]
[EventCountry "ENG"]
[SourceTitle "playchess.com"]
[Source "ChessBase"]
[SourceQuality "1"]
[TimeControl "5400+30"]

1. e4 {[%emt 0:00:34]} e5 {[%emt 0:00:02]} 2. Nf3 {[%emt 0:00:48]} Nc6 {[%emt 0:00:08]} 3. c3 {[%emt 0:00:06]} d5 {[%emt 0:00:37]} 4. Qa4 {[%emt 0:00:01]} f6 {[%emt 0:01:09]} 5. d3 {[%emt 0:00:17]} Nge7 {[%emt 0:01:45]} 6. b4 {[%emt 0:00:47]} Be6 {[%emt 0:05:45]} 7. b5 {[%emt 0:00:02]} Nb8 {[%emt 0:01:30]} 8. Nbd2 {[%emt 0:00:55]} Nd7 {[%emt 0:01:55]} 9. Qc2 {[%emt 0:00:01]} g5 {[%emt 0:07:45]} 10. h3 {[%emt 0:00:08]} Ng6 {[%emt 0:02:37]} 11. exd5 {[%emt 0:00:21]} Bxd5 {[%emt 0:00:37]} 12. g3 {[%emt 0:00:01]} Be7 {[%emt 0:06:41]} 13. c4 {[%emt 0:06:36]} Bxf3 {[%emt 0:07:42]} 14. Nxf3 {[%emt 0:00:08]} Nc5 {[%emt 0:01:10]} 15. Be3 {[%emt 0:08:39]} Ne6 {[%emt 0:02:30]} 16. Bg2 {[%emt 0:11:12]} Bb4+ {[%emt 0:04:13]} 17. Bd2 {[%emt 0:05:43]} Bxd2+ {[%emt 0:06:44]} 18. Qxd2 {[%emt 0:00:16]} Qd6 {[%emt 0:05:23]} 19. Qe3 {[%emt 0:05:50]} Rd8 {[%emt 0:03:21]} 20. O-O-O {[%emt 0:17:15]} Qa3+ {[%emt 0:03:03]} 21. Kb1 {[%emt 0:00:29]} Qb4+ {[%emt 0:07:44]} 22. Ka1 {[%emt 0:02:57]} Qc3+ {[%emt 0:02:17]} 23. Kb1 {[%emt 0:01:40]} Qb4+ {[%emt 0:01:32]} 24. Ka1 {[%emt 0:00:02]} Qc3+ {[%emt 0:00:50]} 25. Kb1 {[%emt 0:00:02]} Qb4+ {[%emt 0:00:20]} 1/2-1/2

[Event "2nd Cambridge Open 2024"]
[Site "Cambridge"]
[Date "2024.02.23"]
[Round "7.40"]
[White "Pert, Max"]
[Black "Spanton, Tim R"]
[Result "1-0"]
[ECO "D00"]
[WhiteElo "1950"]
[BlackElo "1736"]
[Annotator "NA RC"]
[PlyCount "73"]
[EventDate "2024.02.18"]
[EventType "swiss"]
[EventCountry "ENG"]
[SourceTitle "playchess.com"]
[Source "ChessBase"]
[SourceQuality "1"]
[TimeControl "5400+30"]

1. d4 {[%emt 0:00:07]} d5 {[%emt 0:00:03]} 2. Nc3 {[%emt 0:00:28]} Nf6 {[%emt 0:00:23]} 3. Bf4 {[%emt 0:00:28]} a6 {[%emt 0:00:18]} 4. e3 {[%emt 0:00:48]} Bf5 {[%emt 0:00:54]} 5. f3 {[%emt 0:02:28]} e6 {[%emt 0:01:13]} 6. g4 {[%emt 0:01:04]} Bg6 {[%emt 0:00:15]} 7. h4 {[%emt 0:00:51]} h6 {[%emt 0:00:51]} 8. Bd3 {[%emt 0:02:04]} Bh7 {[%emt 0:00:54]} 9. Nge2 {[%emt 0:03:46]} c5 {[%emt 0:00:34]} 10. Bxh7 {[%emt 0:03:05]} Nxh7 {[%emt 0:00:27]} 11. Qd2 {[%emt 0:04:05]} Nc6 {[%emt 0:00:39]} 12. dxc5 {[%emt 0:06:16]} Bxc5 {[%emt 0:00:21]} 13. O-O-O {[%emt 0:00:52]} Qe7 {[%emt 0:09:14]} 14. Nd4 {[%emt 0:05:55]} Nxd4 {[%emt 0:01:35]} 15. exd4 {[%emt 0:00:11]} Bb4 {[%emt 0:00:33]} 16. Qe3 {[%emt 0:01:35]} Bd6 {[%emt 0:05:39]} 17. Rde1 {[%emt 0:02:58]} Bxf4 {[%emt 0:01:37]} 18. Qxf4 {[%emt 0:00:09]} O-O-O {[%emt 0:00:11]} 19. Qe5 {[%emt 0:04:48]} Qf6 {[%emt 0:03:32]} 20. f4 {[%emt 0:01:01]} Rd7 {[%emt 0:09:37]} 21. f5 {[%emt 0:09:08]} Qxe5 {[%emt 0:06:00]} 22. Rxe5 {[%emt 0:00:59]} Nf6 {[%emt 0:02:14]} 23. fxe6 {[%emt 0:05:20]} fxe6 {[%emt 0:00:06]} 24. Rg1 {[%emt 0:00:15]} Rd6 {[%emt 0:00:42]} 25. g5 {[%emt 0:07:23]} Nd7 {[%emt 0:02:49]} 26. Re3 {[%emt 0:01:33]} hxg5 {[%emt 0:00:56]} 27. hxg5 {[%emt 0:00:17]} Rh4 {[%emt 0:00:32]} 28. Ne2 {[%emt 0:01:12]} Kd8 {[%emt 0:04:10]} 29. b3 {[%emt 0:09:55]} Rc6 {[%emt 0:00:46]} 30. Rf1 {[%emt 0:01:37]} Rg4 {[%emt 0:06:44]} 31. Nf4 {[%emt 0:00:55]} e5 {[%emt 0:00:38]} 32. dxe5 {[%emt 0:02:09]} Rxg5 {[%emt 0:00:35]} 33. e6 {[%emt 0:01:29]} Nf6 {[%emt 0:01:53]} 34. e7+ {[%emt 0:02:11]} Kd7 {[%emt 0:02:19]} 35. Nh3 {[%emt 0:01:03]} Rg2 {[%emt 0:01:02]} 36. Rxf6 {[%emt 0:00:49]} Rgxc2+ {[%emt 0:01:06]} 37. Kb1 {[%emt 0:00:23]} 1-0